Cogmind - Beta 17 @@@ ROGUE MODE // 2026.08.05 @ 16:24:52 Player: Retknock Result: Destroyed by D-53 Grenadier with Mini Grenade Launcher Performance ------------- Evolutions (0) 0 Regions Visited (2) 400 Robots Destroyed (18) 90 Value Destroyed (421) 421 Prototype IDs (0) 0 Alien Tech Used (0) 0 Bonus (0) 0 TOTAL SCORE: 911 Bonus ------- None Cogmind --------- Core Integrity 0/250 Matter 189/300 Energy 100/100 System Corruption 1% Temperature Cool (0) Movement Walking (120) Location -10/Mines Parts ------- > --- POWER (1) -------- (None) > --- PROPULSION (2) --- Aluminum Leg > --- UTILITY (2) ------ Medium Storage Unit > --- WEAPON (2) ------- (None) > --- INVENTORY (10) --- Light Ion Engine Light Ion Engine Aluminum Leg Aluminum Leg Power Shielding Beam Cannon Assault Rifle Light Assault Rifle Light Cannon Grenade Launcher Peak State ------------ > --- POWER ------------ Ion Engine > --- PROPULSION ------- Aluminum Leg Aluminum Leg > --- UTILITY ---------- Medium Storage Unit Seismic Detector > --- WEAPON ----------- Particle Gun Light Assault Rifle > --- INVENTORY -------- Ion Engine Light Ion Engine Light Ion Engine Light Ion Engine Light Nuclear Core Aluminum Leg Aluminum Leg Compact Wheel Compact Wheel Light Assault Rifle [Rating: 9] Favorites ----------- Power Ion Engine Engine Ion Engine Propulsion Aluminum Leg Leg Aluminum Leg Utility Seismic Detector Device Seismic Detector Storage Medium Storage Unit Weapon Assault Rifle Energy Gun EM Pulse Gun Ballistic Gun Assault Rifle Ballistic Cannon Light Cannon Launcher Rocket Launcher Build | -11 -10 -10 ------- Run | Yrd Mat Min Slots Evolved . | . . . Power . | . . . Propulsion . | . . . Utility . | . . . Weapon . | . . . Parts Attached 20 | 4 14 2 Power 2 | . 2 . Engine 2 | . 2 . Core . | . . . Reactor . | . . . Propulsion 6 | . 6 . Treads . | . . . Leg 6 | . 6 . Wheel . | . . . Hover . | . . . Flight . | . . . Utility 4 | 2 2 . Device 2 | 1 1 . Storage 2 | 1 1 . Processor . | . . . Hackware . | . . . Protection . | . . . Artifact . | . . . Weapon 8 | 2 4 2 Energy Gun 2 | 1 1 . Energy Cannon . | . . . Ballistic Gun 3 | 1 2 . Ballistic Cannon 1 | . 1 . Launcher 2 | . . 2 Special Weapon . | . . . Impact Weapon . | . . . Slashing Weapon . | . . . Piercing Weapon . | . . . Special Melee Weapon . | . . . Unidentified Prototypes . | . . . Parts Lost 7 | . 2 5 Power 1 | . . 1 Propulsion 2 | . 1 1 Utility 1 | . . 1 Weapon 3 | . 1 2 Highest Loss Streak 5 | . 1 5 To Critical Strikes . | . . . Average Backups 8 | 5 8 10 Power 2 | 1 2 2 Propulsion 2 | 3 2 2 Utility . | . . 1 Weapon 2 | . 2 4 Tool/Special . | . . . Unused Backups 16 | . 6 10 Power 5 | . 3 2 Propulsion 5 | . 2 3 Utility 1 | . . 1 Weapon 4 | . 1 3 Tool/Special 1 | . . 1 Average Slot Usage (%) 99 | . 99 99 Engine 13 | . 13 14 Leg 27 | . 27 28 Device 13 | . 13 13 Storage 14 | . 14 14 Energy Gun 2 | . 3 . Ballistic Gun 14 | . 15 13 Ballistic Cannon 9 | . 8 13 Peak Build Rating 9 | 4 9 9 Average Rating 7 | 2 7 7 On Entrance 4 | . 4 8 Avg Prop Armor Cover (%) . | . . . Naked Turns . | . . . Heaviest Build 23 | 9 21 23 Greatest Support 20 | 3 20 20 Greatest Overweight (x) 6 | 2 6 1 Average Overweight (x) . | 1 . 1 Largest Inventory Capacity 10 | 8 10 10 Average Capacity 9 | 7 9 10 Most Carried 10 | 8 10 10 Average Carried 8 | 6 8 9 Final Capacity 10 | 8 10 10 Final Carried 10 | 7 10 10 Class Distribution -------------------- 100% | Mutant Dominant Class ---------------- Mutant | -10/Materials Mutant | -10/Mines Resources | -11 -10 -10 ----------- Run | Yrd Mat Min Matter Collected 569 | 250 312 7 Remotely . | . . . Salvage Created 547 | 137 410 . Parts 42 | 10 32 . Haulers Intercepted . | . . . Recyclers Shooed . | . . . Parts Field Recycled . | . . . Retrieved Matter . | . . . Parts Self-Destructed . | . . . Prevented . | . . . Parts Restored . | . . . Kills | -11 -10 -10 ------- Run | Yrd Mat Min Combat Hostiles Destroyed 12 | . 12 . Guns 9 | . 9 . Cannons 3 | . 3 . Classes Destroyed 5 | 2 3 . Tunneler 3 | 3 . . Recycler 1 | 1 . . Watcher 2 | . 2 . Swarmer 3 | . 3 . Grunt 9 | . 9 . Best Kill Streak 3 | 2 3 . Combat Bots Only 3 | . 3 . Max Kills in Single Turn 1 | 1 1 . Gunslinging . | . . . Exploded . | . . . Melee . | . . . Uniques/NPCs Destroyed . | . . . Combat | -11 -10 -10 -------- Run | Yrd Mat Min Hostile Shots Fired 96 | . 86 10 Missed 23 | . 23 . Hits 73 | . 63 10 Projectile 73 | . 63 10 AOE 11 | . . 11 Damage Taken 1262 | . 716 546 Core 258 | . 142 116 Absorbed by Shields . | . . . Core Remaining (%) 100 | 100 . . Volleys Fired 69 | 10 53 6 Largest 2 | 2 2 2 Hottest 85 | 60 85 63 Shots Fired 135 | 20 104 11 Gun 110 | 20 90 . Cannon 14 | . 14 . Launcher 11 | . . 11 Special . | . . . Kinetic 92 | 10 82 . Thermal 11 | . 11 . Explosive 11 | . . 11 Electromagnetic 21 | 10 11 . Robot Hit Streak 10 | 3 10 4 Robot Miss Streak 3 | 3 2 1 Penetration Max . | . . . Secondary Targets 3 | . 3 . Max Gunslinging Chain 1 | . 1 . Shots Hit Robots 87 | 9 71 7 Core Hits 36 | 6 26 4 Critical Kills . | . . . Critical Parts Destroyed . | . . . Critical Strikes . | . . . Melee Attacks . | . . . Impact . | . . . Slashing . | . . . Piercing . | . . . Sneak Attacks . | . . . Combat Hostiles . | . . . Follow-up Attacks . | . . . Damage Inflicted 1063 | 114 874 75 Guns 800 | 87 713 . Cannons 161 | . 161 . Explosions 102 | 27 . 75 Melee . | . . . Ramming . | . . . Kinetic 661 | 35 626 . Thermal 142 | 27 115 . Explosive 75 | . . 75 Electromagnetic 185 | 52 133 . Impact . | . . . Slashing . | . . . Piercing . | . . . Highest Corruption 1 | . 1 1 Average Corruption 1 | . 1 1 Corruption Purged . | . . . Corruption Blocked . | . . . Effects 11 | . 8 3 Message Errors 5 | . 2 3 Matter Fused 1 | . 1 . Heat Flow Errors 1 | . 1 . Energy Discharges 1 | . 1 . Data Loss (minor) 2 | . 2 . Data Loss (major) 1 | . 1 . Overload Shots . | . . . Overflow Damage 22 | . . 22 Projectiles . | . . . Explosions 22 | . . 22 Melee . | . . . Knockbacks 1 | . 1 . Impact . | . . . Kinetic 1 | . 1 . Secondary . | . . . Self-Inflicted Damage 59 | . . 59 Shots 5 | . . 5 Rammed . | . . . Targets Rammed . | . . . Kicked . | . . . Crushed . | . . . Highest Temperature 354 | 20 354 9 Average Temperature 86 | 8 107 4 Received Heat Transfer 318 | . 318 . Effects 1 | . 1 . Damage (minor) 1 | . 1 . Siege Activations . | . . . Martial Activations . | . . . Shielding Activations . | . . . Robots Disrupted . | . . . Combat Hostiles . | . . . Robots Corrupted . | . . . Combat Hostiles . | . . . Parts Fried . | . . . Impact Corruptions . | . . . Robots Melted . | . . . Combat Hostiles . | . . . Parts Melted 1 | . 1 . Heat Transferred 309 | 50 259 . Parts Sabotaged . | . . . Parts Stolen . | . . . Parts Stripped . | . . . Power Chain Reactions 1 | 1 . . Alert | -11 -10 -10 ------- Run | Yrd Mat Min Maximum Alert Level . | . . . Low Security (%) 100 | 100 100 100 Level 1 . | . . . Level 2 . | . . . Level 3 . | . . . Level 4 . | . . . Level 5 . | . . . High Security . | . . . Max Security . | . . . Peak Influence 100 | 5 100 16 Initial 16 | . . 16 Average 14 | . 20 . Influence Increases 422 | 20 388 14 Destroy 0b10 Robot/C 240 | . 240 . Destroy 0b10 Robot/NC 30 | 20 10 . Destroy Leader 64 | . 64 . Successful Hack 43 | . 43 . Destroy Structure 15 | . 1 14 Lose Combat Pursuer 30 | . 30 . Influence Decreases 422 | 20 345 57 Entered New Map 27 | . . 27 Time Decay 369 | 20 325 24 Lost Part 26 | . 20 6 Squads Dispatched 5 | . 5 . Investigation 4 | . 4 . Extermination . | . . . Reinforcement 1 | . 1 . Assault . | . . . Garrison . | . . . Intercept . | . . . Searches Triggered . | . . . Construction Impeded . | . . . Haulers Reinforced . | . . . Active Scanning Responses . | . . . Cargo Convoy Interrupts . | . . . Stealth | -11 -10 -10 --------- Run | Yrd Mat Min Distress Signals 3 | . 2 1 Communications Jammed . | . . . Distress Signals . | . . . Times Spotted 27 | . 25 2 Peak Tracking Total 6 | . 6 2 Tactical Retreats 1 | . 1 . Traps | -11 -10 -10 ------- Run | Yrd Mat Min Traps Triggered 1 | . 1 . Indirectly . | . . . Trap Hack Attempts . | . . . Triggered . | . . . Disarmed . | . . . Reprogrammed . | . . . Reused . | . . . Traps Extracted . | . . . Installed . | . . . Triggered . | . . . Machines | -11 -10 -10 ---------- Run | Yrd Mat Min Machines Disabled . | . . . Max in Single Turn . | . . . Machines Repaired . | . . . Machines Dismantled . | . . . Machines Sabotaged . | . . . Overloaded Fab Kills . | . . . Hacking | -11 -10 -10 --------- Run | Yrd Mat Min Machines Accessed 5 | . 5 . Terminals 4 | . 4 . Fabricators . | . . . Repair Stations . | . . . Recycling Units 1 | . 1 . Scanalyzers . | . . . Garrison Access . | . . . Total Hacks 16 | . 16 . Successful 8 | . 8 . Failed 8 | . 8 . Catastrophic 2 | . 2 . Database Lockouts . | . . . Manual . | . . . Terminals 12 | . 12 . Fabricators . | . . . Repair Stations . | . . . Recycling Units 4 | . 4 . Scanalyzers . | . . . Garrison Access . | . . . Terminal Hacks 5 | . 5 . Record 3 | . 3 . Terminal Index 1 | . 1 . Maintenance Status 1 | . 1 . Fabricator Hacks . | . . . Repair Station Hacks . | . . . Recycling Unit Hacks 3 | . 3 . Recycle Component 1 | . 1 . Process 2 | . 2 . Scanalyzer . | . . . Garrison Access Hacks . | . . . Unauthorized Hacks . | . . . Terminals . | . . . Fabricators . | . . . Repair Stations . | . . . Recycling Units . | . . . Scanalyzers . | . . . Garrison Access . | . . . Data Cores Recovered . | . . . Used . | . . . Hacking Detections 5 | . 5 . Full Trace Events 5 | . 5 . Feedback Events 1 | . 1 . Corruption 1 | . 1 . Feedback Blocked . | . . . Robot Schematics Acquired . | . . . Robots Built . | . . . Authchips . | . . . Time . | . . . Total Robot Build Rating . | . . . Part Schematics Acquired . | . . . Parts Built . | . . . Authchips . | . . . Time . | . . . Total Part Build Rating . | . . . Part Studies Acquired . | . . . Parts Repaired . | . . . Time . | . . . Parts Recycled 1 | . 1 . Recycled Matter 106 | . 106 . Retrieved Matter . | . . . Retrieved Components . | . . . Parts Scanalyzed . | . . . Part Schematics Acquired . | . . . Parts Damaged . | . . . Bothacking | -11 -10 -10 ------------ Run | Yrd Mat Min Used RIF Installer . | . . . Robots Hacked . | . . . Non-combat . | . . . Combat . | . . . Robot Hacks Applied . | . . . Relay Couplers Released . | . . . Fabnet Peak Effective % . | . . . Robots Rewired . | . . . Allies Hacked . | . . . Hacks Repelled . | . . . Allies | -11 -10 -10 -------- Run | Yrd Mat Min Total Allies . | . . . Largest Group . | . . . Highest-Rated Group . | . . . Highest-Rated Ally . | . . . Total Orders . | . . . Ally Attacks . | . . . Total Damage . | . . . Kills . | . . . Allies Corrupted . | . . . Allies Melted . | . . . Intel | -11 -10 -10 ------- Run | Yrd Mat Min Active Infowar (turns) 2067 | 15 1550 502 Seismic 2067 | 15 1550 502 Robot Analysis Total . | . . . Derelict Logs Recovered 1 | . . 1 Drone Launches . | . . . Drone Recoveries . | . . . Exploration | -11 -10 -10 ------------- Run | Yrd Mat Min Turns Passed 2266 | 197 1556 513 Spaces Moved 1190 | 107 825 258 Core 108 | 107 1 . Treads . | . . . Legs 1082 | . 824 258 Wheels . | . . . Hover . | . . . Flight . | . . . Fastest Speed 50 | 50 120 190 Average Speed 165 | 145 159 190 Slowest Speed 350 | 150 350 190 Overloaded Moves . | . . . Propulsion Burnouts . | . . . Robots Hopped . | . . . Potential Cave-ins . | . . . Cave-ins Triggered . | . . . Exploration Rate (%) 48 | 5 85 55 Regions Visited 2 Branch Regions 1 Pre-discovered Areas . | . . . Known Exits Taken . | . . . Unknown Exits Taken 2 | 1 1 . Scrap Searched 2 | . . 2 Spaces Dug . | . . . Terrain Destroyed 38 | 7 . 31 Melee . | . . . Projectile . | . . . AOE 38 | 7 . 31 Terrain Rammed . | . . . Walls Destroyed . | . . . Machines Disabled . | . . . Actions | -11 -10 -10 --------- Run | Yrd Mat Min Total 1375 | 131 974 270 Wait 45 | . 45 . Move 1188 | 106 824 258 Hop . | . . . Pick Up 34 | 11 21 2 Fast Attach 5 | . 5 . Attach 12 | 4 8 . Detach . | . . . Swap 3 | . 1 2 Drop 19 | . 17 2 Fire 69 | 10 53 6 Melee . | . . . Ram . | . . . Kick . | . . . Crush . | . . . Escape Stasis . | . . . Rewire . | . . . Trap . | . . . Miscellaneous . | . . . Route ------- -11/Scrapyard -10/Materials (discovered 3 exits: [*Mat] / [*Min x2]) -10/Mines (discovered 2 exits: [*Mat] / [*Exi]) History --------- Turn | Location | Event 25 | -11/Scrapyard | Discovered new exit (range 14) 198 | -11/Scrapyard | Entered Materials 318 | -10/Materials | Build established: Mutant 419 | -10/Materials | Discovered new exit (range 8) 492 | -10/Materials | Discovered new exit (range 12) 769 | -10/Materials | Discovered new exit (range 8) 1576 | -10/Materials | Core integrity fell below 50% 1754 | -10/Materials | Entered Mines 1761 | -10/Mines | Received a Rocket Launcher from a helpful Derelict 1801 | -10/Mines | Met a Derelict bent on vengeance 1914 | -10/Mines | Learned Materials terminal intel 1921 | -10/Mines | Deemed a non-threat by the Exiles lab entrance 1923 | -10/Mines | Discovered new exit (range 5) 2130 | -10/Mines | Discovered new exit (range 9) 2220 | -10/Mines | Assembled infested the area 2225 | -10/Mines | Assisted by a Guerilla fighting off Assembled 2266 | -10/Mines | Core integrity fell below 20% 2267 | -10/Mines | Destroyed by D-53 Grenadier with Mini Grenade Launcher Last Messages --------------- 02238_ Pressure Siphon disabled. 02238_ K-01 Serf destroyed. 02239_ XS-9W2(h): "I'll hold them off! Go on ahead or try to find another way!" 02239_ HV Slug penetrates Pressure Siphon. 02241_ HV Slug penetrates D-53 Grenadier. 02241_ D-53 Grenadier suffers critical hit (Destroy). 02241_ D-53 Grenadier destroyed. 02241_ HV Slug penetrates T-07 Excavator. 02241_ T-07 Excavator knocked back. 02242_ XS-9W2(h) destroyed. 02254_ The unstable cave ceiling collapses. 02256_ Seismic Detector destroyed. 02261_ Aluminum Leg destroyed. 02261_ Ion Engine destroyed. 02263_ Grenade Launcher destroyed. 02265_ The unstable cave ceiling collapses. 02266_ Rocket Launcher destroyed. 02266_ Destroyed Rocket Launcher. Map ----- +----------------------------------------------------+ | ???????????????????## ##??# #???### | | ????????????????????## ##?### #?????## | | ????????????????????## ##### ######## | | ????????????????????# %! | | ???????????????????# ##### | | ??????????????????# ##???########## | | ??????????????????# ##??????????#### | | ??????????????????## ##????#####??# | | ???????????????????# ?????## #### # # | | ??????????????????# ?????# ## # # | | ?????????????????# ???# ### ## | | ?????????????????# ???# #?#####? | | ?????????????????# ???# ##### ##??????? | | ?????????????????# ### ##?# #???#####???????? | | ?????????????????# ???# #?# #???????????????? | | ????????????????? ?????# #?# ###?????????????? | | ?????????????????????????# ### #?????????????? | | ?????????????????????????# ## #?????????????? | | ?????????????????????????# ##?????????????? | | ?????????????????????????# #??????????????? | | ?????????????????????##### ##?????????????? | | ????????????????????## ###???????????? | | ???????????????????## ???????????? | | ???????????????????# "" ??????????? | | ???????????????????# " ] ####?????? | | ?????????????####?## @ ! % #?????# | | ?????????????# ### d % #????# | | ?????????????# #???# | | ?????????????# # #??# | | ?????????????## ### ### | | ??????????????########### #?# ## < ? | | ????????????????????????####### # ###?# ## ?? | | ???????????????????????????#### ###???# ## ??? | | ???????????????????????????# #????# ## #??? | | ???????????????????????????# """ #????# ## #??? | | ???????????????????????????# """ #????# ## #??? | | ???????????????????????????# """ #????# ! =#??? | | ???????????????????????????# #????# %|#??? | | ???????????????????????????########????########??? | | ?????????????????????????????????????????????????? | | | | | | | | | | | | | | | | | | | | | +----------------------------------------------------+ Best States ------------- Heat Dissipation 25 Energy Generation 10 Energy Capacity 250 Matter Stores 300 Matter Capacity 300 Sight Range 16 Terrain Scan Density 10 Evasion (%) 55 Item Schematics ----------------- None Robot Schematics ------------------ None Fabricated ------------ Nothing Repaired ---------- Nothing Studied --------- None Alien Tech Used ----------------- None Achievements -------------- None Challenges ------------ None Game ------ Seed NavigationPotentialDrive Manual? 0 Play Time 00:19:12 Cumulative 10.7 hours Start 2026.08.05 @ 15:36:49 End 2026.08.05 @ 16:24:52 Sessions 1 Manual Loads 0 Difficulty Rogue Special Mode None Game No. 13 Rogue 13 Adventurer 0 Explorer 0 Win Type - Total 0 Types 0/0/0/0/0/0/0/0/0/0 Lore% 7 Gallery% 12 Achievement% 10 Wizard Run 0 Options --------- Layout 2 ASCII 0 Keyboard 0 Movement Mouse Keybinds 0 Fullscreen 1 Font 24/Smallcaps Map View 50x44 Zoom Use 0% Tactical HUD 1 Map Filters NONE Filters NONE Steam 1 RUN: b78cf7b7-14a9-4378-a5bb-410b6fed0bcd